fUSD/lending_fUSD_20260614
["ID","MTS","AMOUNT","RATE_DAILY","PERIOD"]
[425015550,1781427033000,-470.7172671,0.00019999,2]
[425015553,1781427033000,-500.0,0.00019999,2]
[425015566,1781427033000,-500.0,0.00019999,2]
[425015559,1781427033000,-500.0,0.00019999,2]
[425015574,1781427033000,-178.7542749,0.00019999,2]
[425015571,1781427033000,-500.0,0.00019999,2]
[425015573,1781427033000,-150.0,0.00019999,2]
[425015570,1781427033000,-500.0,0.00019999,2]
[425015575,1781427033000,-309.09371282,0.00019999,2]
[425015569,1781427033000,-500.0,0.00019999,2]
[425015572,1781427033000,-490.0,0.00019999,2]
[425015567,1781427033000,-500.0,0.00019999,2]
[425015568,1781427033000,-500.0,0.00019999,2]
[425015565,1781427033000,-512.76589096,0.00019999,2]
[425015564,1781427033000,-500.0,0.00019999,2]
[425015563,1781427033000,-382.03711996,0.00019999,2]
[425015561,1781427033000,-500.0,0.00019999,2]
[425015560,1781427033000,-500.0,0.00019999,2]
[425015562,1781427033000,-363.98368094,0.00019999,2]
[425015558,1781427033000,-500.0,0.00019999,2]
[425015578,1781427038000,-190.90628718,0.00019999,2]
[425015581,1781427038000,-8.58880577,0.00019999,2]
[425015579,1781427038000,-500.0,0.00019999,2]
[425015580,1781427038000,-500.0,0.00019999,2]
[425015593,1781427040000,-241.0,0.0002,5]
[425015591,1781427040000,-500.0,0.00019999,2]
[425015590,1781427040000,-500.0,0.00019999,2]
[425015587,1781427040000,-234.6733777,0.00019999,2]
[425015589,1781427040000,-500.0,0.00019999,2]
[425015592,1781427040000,-244.2993492,0.00019999,2]
[425015588,1781427040000,-618.35430847,0.00019999,2]
[425015585,1781427040000,-256.73781653,0.00019999,2]
[425015597,1781427041000,-12742.71008459,0.0002,2]
[425015595,1781427041000,-150.0,0.0002,2]
[425015594,1781427041000,-151.0,0.0002,5]
[425015596,1781427041000,-2000.0,0.0002,2]
[425015620,1781427043000,-24719.44502597,0.0002,2]
[425015621,1781427043000,-4073.66049364,0.0002,2]
[425015623,1781427043000,-496.22891818,0.0002,2]
[425015622,1781427043000,-1111.3344762,0.0002,2]
[425015619,1781427043000,-153.0,0.00019999,2]
[425015637,1781427046000,-1931.0784177,0.0002,2]
[425015636,1781427046000,-3843.39476985,0.0002,2]
[425015635,1781427046000,-5456.56550432,0.0002,2]
[425015634,1781427046000,-3898.26900876,0.0002,2]
[425015633,1781427046000,-2599.80590837,0.0002,2]
[425015632,1781427046000,-12881.41922792,0.0002,2]
[425015631,1781427046000,-6328.92184006,0.0002,2]
[425015630,1781427046000,-1047.92,0.0002,2]
[425015638,1781427047000,-933.71669306,0.0002,2]
[425015644,1781427222000,52666.28895529,0.00015,2]
[425015645,1781427268000,1588.31224346,0.000103,2]
[425015651,1781428025000,-238.0,0.00019,2]
[425015650,1781428025000,-150.0,0.00017111,2]
[425015653,1781428025000,-177.09,0.00019503,2]
[425015654,1781428025000,-212.54,0.0001965,2]
[425015655,1781428025000,-98.43143001,0.00019893,2]
[425015652,1781428025000,-250.0,0.00019404,2]
[425015657,1781428231000,-166.66,0.00018615,2]
[425015659,1781428231000,-153.0,0.00018709,2]
[425015661,1781428231000,-7.3067625,0.00019007,2]
[425015660,1781428231000,-159.0,0.00019,2]
[425015663,1781428231000,-166.66,0.00019399,2]
[425015658,1781428231000,-151.0,0.00018638,2]
[425015665,1781428231000,-2169.02938761,0.000198,2]
[425015666,1781428231000,-188.4902261,0.00019898,2]
[425015670,1781428231000,-500.0,0.00019898,2]
[425015669,1781428231000,-311.5097739,0.00019898,2]
[425015671,1781428231000,-94.91968218,0.00019898,2]
[425015664,1781428231000,-166.66,0.00019791,2]
[425015662,1781428231000,-159.3532375,0.00019007,2]
[425015678,1781428237000,-203.25280584,0.00019799,2]
[425015675,1781428237000,-152.0,0.00018621,2]
[425015676,1781428237000,-500.0,0.00019799,2]
[425015680,1781428237000,-406.33257301,0.00019899,2]
[425015677,1781428237000,-500.0,0.00019799,2]
[425015682,1781428237000,-315.48153945,0.00019899,2]
[425015679,1781428237000,-156.56414044,0.00019898,2]
[425015683,1781428237000,-1866.534502,0.00019899,2]
[425015685,1781428237000,-57191.14822616,0.000199,2]
[425015684,1781428237000,-6198.36395855,0.00019899,2]
[425015681,1781428237000,-605.65135585,0.00019899,2]
[425015708,1781428239000,-3533.13381745,0.000199,2]
[425015706,1781428239000,-1525.82966888,0.000199,2]
[425015710,1781428239000,-1723.77489404,0.000199,2]
[425015709,1781428239000,-2608.33903404,0.000199,2]
[425015707,1781428239000,-1027.22887032,0.000199,2]
[425015716,1781428243000,-3353.21792276,0.000199,2]
[425015715,1781428243000,-1673.46028244,0.000199,2]
[425015721,1781428246000,-3917.57304394,0.000199,2]
[425015720,1781428246000,-41085.34324244,0.000199,2]
[425015719,1781428246000,-32573.14694511,0.000199,2]
[425015735,1781429232000,-166.66,0.00018294,2]
[425015734,1781429232000,-166.66,0.00017917,2]
[425015736,1781429232000,-166.66,0.00018671,2]
[425015739,1781429232000,-151.0,0.00018845,2]
[425015738,1781429232000,-151.0,0.00018845,2]
[425015741,1781429232000,-43.90664345,0.00018845,2]
[425015740,1781429232000,-150.0,0.00018845,2]
[425015737,1781429232000,-189.0,0.00018844,2]
[425015744,1781429240000,-88.69716493,0.00018845,2]
[425015743,1781429240000,-151.0,0.00018845,2]
[425015742,1781429240000,-106.09335655,0.00018845,2]
[425015746,1781429249000,-150.0,0.00018845,2]
[425015748,1781429249000,-144.75791245,0.00018845,2]
[425015747,1781429249000,-152.0,0.00018845,2]
[425015745,1781429249000,-61.30283507,0.00018845,2]
[425015752,1781429363000,-190.20834101,0.00018845,2]
[425015749,1781429363000,-5.24208755,0.00018845,2]
[425015751,1781429363000,-151.0,0.00018845,2]
[425015754,1781429363000,-500.0,0.00018858,2]
[425015750,1781429363000,-151.0,0.00018845,2]
[425015755,1781429363000,-500.0,0.00018858,2]
[425015756,1781429363000,-370.3287675,0.00018858,2]
[425015757,1781429363000,-500.0,0.00018858,2]
[425015758,1781429363000,-150.0,0.00018859,2]
[425015759,1781429363000,-25641.787304,0.0001886,2]
[425015753,1781429363000,-210.43349994,0.00018845,2]
[425015771,1781429431000,-151.0,0.00019103,2]
[425015768,1781429431000,-150.0,0.00019103,2]
[425015773,1781429431000,-151.0,0.00019119,2]
[425015775,1781429431000,-152.0,0.0001912,2]
[425015774,1781429431000,-150.0,0.0001912,2]
[425015767,1781429431000,-151.0,0.00019102,2]
[425015776,1781429431000,-150.0,0.0001912,2]
[425015769,1781429431000,-170.03,0.00019103,2]
[425015766,1781429431000,-150.0,0.00019102,2]
[425015765,1781429431000,-166.66,0.00019048,2]
[425015764,1781429431000,-15192.752696,0.0001886,2]
[425015770,1781429431000,-151.0,0.00019103,2]
[425015777,1781429431000,-153.0,0.0001912,2]
[425015772,1781429431000,-150.0,0.00019107,2]
[425015779,1781429431000,-151.0,0.0001912,2]
[425015790,1781429431000,-150.0,0.00019799,2]
[425015778,1781429431000,-151.0,0.0001912,2]
[425015788,1781429431000,-151.0,0.00019799,2]
[425015787,1781429431000,-152.0,0.00019799,2]
[425015784,1781429431000,-114.27348293,0.00019589,2]
[425015785,1781429431000,-643.87071947,0.00019755,2]
[425015791,1781429431000,-17312.7357,0.000198,2]
[425015786,1781429431000,-150.0,0.00019799,2]
[425015783,1781429431000,-385.72651707,0.00019589,2]
[425015782,1781429431000,-166.66,0.00019425,2]
[425015781,1781429431000,-287.45,0.00019128,2]
[425015780,1781429431000,-15149.25477442,0.00019121,9]
[425015789,1781429431000,-153.0,0.00019799,2]
[425015792,1781429432000,-166.66,0.00019803,2]
[425015794,1781429432000,-450.29869313,0.00019898,2]
[425015795,1781429432000,-1254.41808677,0.00019898,2]
[425015793,1781429432000,-175.99838716,0.0001987,2]
[425015799,1781429432000,-150.0,0.000199,2]
[425015800,1781429432000,-261.97685928,0.000199,2]
[425015798,1781429432000,-1952.12644893,0.00019899,2]
[425015797,1781429432000,-799.57861759,0.00019898,2]
[425015796,1781429432000,-1010.21771998,0.00019898,2]
[425015805,1781429432000,-659.54793472,0.000199,2]
[425015801,1781429432000,-1426.23,0.000199,14]
[425015802,1781429432000,-358.91819336,0.000199,2]
[425015821,1781429432000,-1611.23521964,0.00019917,2]
[425015823,1781429432000,-2764.25765987,0.00019917,2]
[425015819,1781429432000,-1437.25959781,0.00019917,2]
[425015806,1781429432000,-1090.72861749,0.000199,2]
[425015804,1781429432000,-177.7026854,0.000199,2]
[425015808,1781429432000,-2238.09095353,0.00019917,2]
[425015803,1781429432000,-200.0,0.000199,2]
[425015850,1781429439000,-2349.45264352,0.00019917,2]
[425015844,1781429439000,-1517.12268375,0.00019917,2]
[425015846,1781429439000,-5470.49500095,0.00019917,2]
[425015853,1781429440000,-431.4790364,0.00019917,2]
[425015852,1781429440000,-522.67579516,0.00019917,2]
[425015862,1781429440000,-784.99329176,0.00019917,2]
[425015878,1781429440000,-3943.37585876,0.00019917,2]
[425015879,1781429440000,-362.79,0.00019917,2]
[425015880,1781429440000,-8856.176646,0.00019917,2]
[425015882,1781429440000,-125.43732828,0.00019934,2]
[425015883,1781429440000,-224.56267172,0.00019934,2]
[425015885,1781429440000,-453.9242905,0.00019971,2]
[425015884,1781429440000,-8719.2211929,0.00019971,2]
[425015881,1781429440000,-8821.78146645,0.00019917,2]
[425015888,1781429440000,-300.0,0.00019999,2]
[425015890,1781429440000,-787.23,0.00019999,2]
[425015895,1781429440000,-787.23,0.00019999,2]
[425015896,1781429440000,-466.20895032,0.00019999,2]
[425015887,1781429440000,-300.0,0.00019999,2]
[425015892,1781429440000,-787.23,0.00019999,2]
[425015891,1781429440000,-787.23,0.00019999,2]
[425015889,1781429440000,-787.23,0.00019999,2]
[425015893,1781429440000,-787.23,0.00019999,2]
[425015894,1781429440000,-787.23,0.00019999,2]
[425015886,1781429440000,-2046.8054207,0.00019983,2]
[425015898,1781429445000,-151.0,0.00017613,2]
[425015899,1781429445000,-321.02104968,0.00019999,2]
[425015901,1781429445000,-787.23,0.00019999,2]
[425015913,1781429446000,-1199.82,0.00019999,2]
[425015914,1781429446000,-1199.82,0.00019999,2]
[425015918,1781429446000,-1199.82,0.00019999,2]
[425015915,1781429446000,-1199.82,0.00019999,2]
[425015919,1781429446000,-1199.82,0.00019999,2]
[425015921,1781429446000,-1199.82,0.00019999,2]
[425015916,1781429446000,-1199.82,0.00019999,2]
[425015923,1781429446000,-1199.82,0.00019999,2]
[425015912,1781429446000,-787.23,0.00019999,2]
[425015911,1781429446000,-787.23,0.00019999,2]
[425015909,1781429446000,-787.23,0.00019999,2]
[425015904,1781429446000,-590.23420845,0.00019999,2]
[425015906,1781429446000,-787.23,0.00019999,2]
[425015905,1781429446000,-787.23,0.00019999,2]
[425015903,1781429446000,-196.99579155,0.00019999,2]
[425015902,1781429446000,-787.23,0.00019999,2]
[425015907,1781429446000,-434.9670259,0.00019999,2]
[425015908,1781429446000,-352.2629741,0.00019999,2]
[425015917,1781429446000,-1199.82,0.00019999,2]
[425015910,1781429446000,-787.23,0.00019999,2]
[425015925,1781429446000,-1199.82,0.00019999,2]
[425015920,1781429446000,-1199.82,0.00019999,2]
[425015927,1781429446000,-1199.82,0.00019999,2]
[425015942,1781429446000,-615.01889641,0.0002,2]
[425015941,1781429446000,-2816.25291292,0.0002,2]
[425015940,1781429446000,-8277.90698707,0.0002,2]
[425015943,1781429446000,-872.29078,0.0002,2]
[425015944,1781429446000,-1297.33197894,0.0002,2]
[425015924,1781429446000,-1199.82,0.00019999,2]
[425015939,1781429446000,-12099.95195305,0.0002,2]
[425015938,1781429446000,-1102.20982589,0.0002,2]
[425015946,1781429446000,-1592.53782274,0.0002,2]
[425015937,1781429446000,-3206.46563286,0.0002,2]
[425015947,1781429446000,-622.92302494,0.0002,2]
[425015931,1781429446000,-1199.82,0.00019999,2]
[425015929,1781429446000,-1199.82,0.00019999,2]
[425015934,1781429446000,-154.0,0.0002,5]
[425015935,1781429446000,-2000.0,0.0002,2]
[425015933,1781429446000,-157.0,0.0002,5]
[425015930,1781429446000,-1199.82,0.00019999,2]
[425015945,1781429446000,-693.12083928,0.0002,2]
[425015932,1781429446000,-158.0,0.0002,5]
[425015928,1781429446000,-1199.82,0.00019999,2]
[425015926,1781429446000,-1199.82,0.00019999,2]
[425015936,1781429446000,-36670.0570259,0.0002,2]
[425015951,1781429447000,-28281.72865635,0.0002,2]
[425015956,1781430170000,1619.55,0.000136,2]
[425015957,1781430180000,404.88,0.000136,2]
[425015958,1781430192000,404.88,0.000136,2]
[425015959,1781430202000,404.88,0.000136,2]
[425015962,1781430340000,-218.37527295,0.0001816,2]
[425015963,1781430340000,-64.6960942,0.00018759,2]
[425015961,1781430340000,-151.0,0.00017561,2]
[425015960,1781430340000,-151.0,0.00017561,2]
[425015964,1781430437000,-143.1182133,0.00018759,2]
[425015965,1781430437000,-300.0,0.00018759,2]
[425015966,1781430437000,-48.66855007,0.00018759,2]
[425015968,1781430446000,-1012.20486877,0.0001876,2]
[425015967,1781430446000,-101.33144993,0.00018759,2]
[425015973,1781430631000,-300.0,0.00017999,2]
[425015979,1781430632000,-622.24371639,0.00018,2]
[425015976,1781430632000,-7192.40718956,0.00018,2]
[425015978,1781430632000,-26823.38494647,0.00018,2]
[425015977,1781430632000,-23919.4936636,0.00018,2]
[425015975,1781430632000,-773.1519251,0.00018,2]
[425015974,1781430632000,-1079.15588592,0.00018,2]
[425015991,1781430638000,-166.66,0.00018411,2]
[425015992,1781430638000,-28486.58436769,0.0001866,2]
[425015990,1781430638000,-4467.27267296,0.00018,2]
[425016031,1781430640000,-5860.17057274,0.0001866,2]
[425016056,1781430643000,-500.0,0.00019726,2]
[425016076,1781430643000,-300.0,0.00019999,2]
[425016054,1781430643000,-500.0,0.00019726,2]
[425016058,1781430643000,-219.11595809,0.00019726,2]
[425016060,1781430643000,-150.0,0.00019726,2]
[425016059,1781430643000,-150.0,0.00019726,2]
[425016068,1781430643000,-475.9542,0.000199,2]
[425016066,1781430643000,-283.03470401,0.000199,2]
[425016065,1781430643000,-23796.43,0.000198,2]
[425016062,1781430643000,-188.81881566,0.00019726,2]
[425016064,1781430643000,-501.94047439,0.000198,2]
[425016063,1781430643000,-300.0,0.000198,2]
[425016077,1781430643000,-500.0,0.00019999,2]
[425016061,1781430643000,-150.0,0.00019726,2]
[425016049,1781430643000,-500.0,0.00019726,2]
[425016043,1781430643000,-500.0,0.00019726,2]
[425016051,1781430643000,-500.0,0.00019726,2]
[425016069,1781430643000,-2000.0,0.000199,2]
[425016038,1781430643000,-166.66,0.00018799,2]
[425016036,1781430643000,-32299.30645957,0.0001866,2]
[425016040,1781430643000,-166.66,0.00019186,2]
[425016041,1781430643000,-166.66,0.00019574,2]
[425016042,1781430643000,-500.0,0.00019726,2]
[425016050,1781430643000,-510.75542109,0.00019726,2]
[425016039,1781430643000,-319.0,0.00019,7]
[425016044,1781430643000,-500.0,0.00019726,2]
[425016052,1781430643000,-647.67632266,0.00019726,2]
[425016053,1781430643000,-500.0,0.00019726,2]
[425016046,1781430643000,-500.0,0.00019726,2]
[425016045,1781430643000,-500.0,0.00019726,2]
[425016048,1781430643000,-500.0,0.00019726,2]
[425016037,1781430643000,-109417.3772,0.0001866,2]
[425016067,1781430643000,-2500.0,0.000199,2]
[425016047,1781430643000,-500.0,0.00019726,2]
[425016072,1781430643000,-5409.01879888,0.000199,2]
[425016100,1781430643000,-500.0,0.00019999,2]
[425016102,1781430643000,-500.0,0.00019999,2]
[425016099,1781430643000,-500.0,0.00019999,2]
[425016104,1781430643000,-500.0,0.00019999,2]
[425016105,1781430643000,-500.0,0.00019999,2]
[425016098,1781430643000,-500.0,0.00019999,2]
[425016096,1781430643000,-323.22914473,0.00019999,2]
[425016097,1781430643000,-500.0,0.00019999,2]
[425016101,1781430643000,-500.0,0.00019999,2]
[425016106,1781430643000,-500.0,0.00019999,2]
[425016107,1781430643000,-500.0,0.00019999,2]
[425016109,1781430643000,-500.0,0.00019999,2]
[425016108,1781430643000,-500.0,0.00019999,2]
[425016111,1781430643000,-500.0,0.00019999,2]
[425016103,1781430643000,-500.0,0.00019999,2]
[425016095,1781430643000,-500.0,0.00019999,2]
[425016070,1781430643000,-1756.91380401,0.000199,2]
[425016094,1781430643000,-500.0,0.00019999,2]
[425016073,1781430643000,-350.0,0.00019945,2]
[425016071,1781430643000,-439.69862316,0.000199,2]
[425016093,1781430643000,-500.0,0.00019999,2]
[425016075,1781430643000,-300.0,0.00019999,2]
[425016082,1781430643000,-500.0,0.00019999,2]
[425016078,1781430643000,-500.0,0.00019999,2]
[425016081,1781430643000,-500.0,0.00019999,2]
[425016074,1781430643000,-166.66,0.00019962,2]
[425016086,1781430643000,-500.0,0.00019999,2]
[425016089,1781430643000,-500.0,0.00019999,2]
[425016088,1781430643000,-500.0,0.00019999,2]
[425016090,1781430643000,-500.0,0.00019999,2]
[425016079,1781430643000,-500.0,0.00019999,2]
[425016092,1781430643000,-500.0,0.00019999,2]
[425016084,1781430643000,-500.0,0.00019999,2]
[425016116,1781430644000,-294047.52485734,0.0002,2]
[425016112,1781430644000,-199.1204414,0.00019999,2]
[425016115,1781430644000,-2000.0,0.0002,2]
[425016113,1781430644000,-300.0,0.00019999,5]
[425016119,1781430644000,-27325.23479888,0.0002,2]
[425016117,1781430644000,-43521.28480063,0.0002,2]
[425016120,1781430644000,-1125.0,0.0002,2]
[425016118,1781430644000,-12826.9654707,0.0002,2]
[425016114,1781430644000,-155.0,0.0002,5]
[425016124,1781430646000,-608.21076559,0.0002,2]
[425016123,1781430646000,-388953.3235257,0.0002,2]
[425016127,1781430646000,-113478.08371839,0.0002,2]
[425016125,1781430646000,-16739.9999998,0.0002,2]
[425016133,1781430769000,-522.67579516,0.000155,5]
[425016134,1781430787000,-522.67579516,0.000155,5]
[425016135,1781430805000,-1424.92344864,0.000155,5]
[425016137,1781431004000,1345883.05577503,0.00015,2]
[425016139,1781431133000,-500.0,0.00015099,2]
[425016140,1781431163000,3060.0,0.00015,5]
[425016141,1781431189000,250.0,0.00014,2]
[425016150,1781431644000,-150.0,0.0001552,2]
[425016152,1781431644000,-500.0,0.00016437,2]
[425016153,1781431644000,-174.81659796,0.00016437,2]
[425016151,1781431644000,-300.0,0.00016,2]
[425016180,1781431832000,-500.0,0.00016436,2]
[425016174,1781431832000,-500.0,0.00016436,2]
[425016175,1781431832000,-500.0,0.00016436,2]
[425016177,1781431832000,-500.0,0.00016436,2]
[425016188,1781431832000,-500.0,0.00016436,2]
[425016176,1781431832000,-500.0,0.00016436,2]
[425016184,1781431832000,-500.0,0.00016436,2]
[425016179,1781431832000,-500.0,0.00016436,2]
[425016182,1781431832000,-500.0,0.00016436,2]
[425016185,1781431832000,-500.0,0.00016436,2]
[425016186,1781431832000,-500.0,0.00016436,2]
[425016171,1781431832000,-500.0,0.00016436,2]
[425016181,1781431832000,-500.0,0.00016436,2]
[425016178,1781431832000,-500.0,0.00016436,2]
[425016172,1781431832000,-27.22700345,0.00016436,2]
[425016183,1781431832000,-500.0,0.00016436,2]
[425016170,1781431832000,-500.0,0.00016436,2]
[425016156,1781431832000,-400.13519595,0.00016436,2]
[425016155,1781431832000,-300.0,0.00016435,2]
[425016157,1781431832000,-500.0,0.00016436,2]
[425016159,1781431832000,-500.0,0.00016436,2]
[425016161,1781431832000,-322.62175646,0.00016436,2]
[425016158,1781431832000,-500.0,0.00016436,2]
[425016173,1781431832000,-472.77299655,0.00016436,2]
[425016162,1781431832000,-500.0,0.00016436,2]
[425016163,1781431832000,-500.0,0.00016436,2]
[425016164,1781431832000,-500.0,0.00016436,2]
[425016168,1781431832000,-500.0,0.00016436,2]
[425016167,1781431832000,-541.65996371,0.00016436,2]
[425016169,1781431832000,-500.0,0.00016436,2]
[425016165,1781431832000,-500.0,0.00016436,2]
[425016160,1781431832000,-500.0,0.00016436,2]
[425016166,1781431832000,-500.0,0.00016436,2]
[425016190,1781431832000,-500.0,0.00016436,2]
[425016201,1781431832000,-500.0,0.00016436,2]
[425016222,1781431832000,-364.42583085,0.00018781,2]
[425016226,1781431832000,-313.58709328,0.00018904,2]
[425016225,1781431832000,-294.83993572,0.00018904,2]
[425016224,1781431832000,-281.25,0.00018865,2]
[425016223,1781431832000,-320.15,0.00018863,2]
[425016221,1781431832000,-302.25416915,0.00018781,2]
[425016220,1781431832000,-197.73,0.00018779,2]
[425016219,1781431832000,-320.15,0.00018688,2]
[425016212,1781431832000,-166.66,0.0001782,2]
[425016192,1781431832000,-500.0,0.00016436,2]
[425016217,1781431832000,-320.15,0.00018481,2]
[425016216,1781431832000,-197.73,0.00018321,2]
[425016209,1781431832000,-166.66,0.00017453,2]
[425016213,1781431832000,-814.64598723,0.00018116,2]
[425016211,1781431832000,-250.0,0.000176,2]
[425016215,1781431832000,-320.15,0.0001821,2]
[425016214,1781431832000,-166.66,0.00018188,2]
[425016210,1781431832000,-1500.0,0.00017568,2]
[425016199,1781431832000,-500.0,0.00016436,2]
[425016197,1781431832000,-500.0,0.00016436,2]
[425016194,1781431832000,-500.0,0.00016436,2]
[425016200,1781431832000,-500.0,0.00016436,2]
[425016204,1781431832000,-819.56,0.00016438,2]
[425016202,1781431832000,-662.35,0.00016438,2]
[425016196,1781431832000,-500.0,0.00016436,2]
[425016203,1781431832000,-962.61,0.00016438,2]
[425016205,1781431832000,-294.81,0.000167,2]
[425016206,1781431832000,-933.73,0.00016931,2]
[425016207,1781431832000,-794.97,0.00016932,2]
[425016208,1781431832000,-904.86,0.00017424,2]
[425016218,1781431832000,-166.66,0.00018555,2]
[425016198,1781431832000,-350.0,0.00016436,2]
[425016254,1781431838000,-166.66,0.0001929,2]
[425016252,1781431838000,-197.73,0.00019237,2]
[425016253,1781431838000,-320.15,0.00019285,2]
[425016256,1781431838000,-320.18,0.00019405,2]
[425016255,1781431838000,-320.15,0.00019405,2]
[425016249,1781431838000,-1632.63,0.00019149,2]
[425016251,1781431838000,-723.0,0.00019161,5]
[425016250,1781431838000,-320.15,0.00019157,2]
[425016247,1781431838000,-320.15,0.00019018,2]
[425016246,1781431838000,-166.66,0.00018923,2]
[425016245,1781431838000,-155.632971,0.00018904,2]
[425016248,1781431838000,-1498.05,0.00019149,2]
[425016257,1781431838000,-197.73,0.00019695,2]
[425016259,1781431838000,-700.18519363,0.00019749,2]
[425016261,1781431838000,-767.37,0.00019783,2]
[425016258,1781431838000,-804.15348108,0.00019704,2]
[425016270,1781431838000,-242.60117484,0.000199,2]
[425016268,1781431838000,-457.44551685,0.00019817,2]
[425016269,1781431838000,-200.0,0.0001984,2]
[425016266,1781431838000,-492.06366735,0.00019807,2]
[425016271,1781431838000,-2691.85330831,0.000199,2]
[425016265,1781431838000,-8237.45777619,0.000198,2]
[425016263,1781431838000,-19726.45072865,0.000198,2]
[425016264,1781431838000,-522.67579516,0.000198,2]
[425016262,1781431838000,-4090.90466629,0.0001979,2]
[425016260,1781431838000,-692.58,0.00019783,2]
[425016267,1781431838000,-67.26529325,0.00019817,2]
[425016289,1781431840000,-473.95304399,0.000199,2]
[425016288,1781431840000,-592.31929684,0.000199,2]
[425016287,1781431840000,-706.37642362,0.000199,2]
[425016290,1781431841000,-500.0,0.000199,2]
[425016294,1781431843000,-1708.24595,0.000199,2]
[425016296,1781431843000,-4891.57410375,0.000199,2]
[425016295,1781431843000,-5715.93867724,0.000199,2]
[425016298,1781431843000,-2500.0,0.000199,2]
[425016297,1781431843000,-1600.08020454,0.000199,2]
[425016300,1781431843000,-1581.2224236,0.000199,2]
[425016301,1781431843000,-700.18519363,0.00019922,2]
[425016302,1781431843000,-151.0,0.00019944,2]
[425016304,1781431843000,-525.66914331,0.00019951,2]
[425016303,1781431843000,-350.0,0.00019945,2]
[425016305,1781431843000,-174.51605032,0.00019951,2]
[425016306,1781431843000,-804.15348108,0.00019964,2]
[425016307,1781431843000,-191.82938094,0.00019983,2]
[425016299,1781431843000,-293.13241544,0.000199,2]
[425016317,1781431846000,-270.27222856,0.00016435,2]
[425016318,1781431846000,-117.35508971,0.00016435,2]
[425016320,1781431846000,-522.6805728,0.00019232,2]
[425016319,1781431846000,-38.59357861,0.00016435,2]
[425016321,1781431846000,-612.32410014,0.00019983,2]
[425016323,1781431846000,-1897.34091528,0.00019999,2]
[425016322,1781431846000,-778.11173128,0.00019999,2]
[425016331,1781432688000,-155.0,0.0001629,2]
[425016333,1781432831000,-354.83675216,0.00016438,2]
[425016332,1781432831000,-151.6,0.00016438,2]
[425016335,1781432847000,-345.79310192,0.00016438,2]
[425016334,1781432847000,-349.79324784,0.00016438,2]
[425016336,1781432848000,-269.79689808,0.00016438,2]
[425016338,1781432848000,-261.7608138,0.0001693,2]
[425016337,1781432848000,-647.33,0.00016438,2]
[425016341,1781432875000,-500.0,0.0001693,2]
[425016339,1781432875000,-238.2391862,0.0001693,2]
[425016340,1781432875000,-500.0,0.0001693,2]
[425016342,1781432875000,-289.16599637,0.0001693,2]
[425016343,1781432875000,-597.11,0.00016931,2]
[425016344,1781432875000,-627.91,0.00016932,2]
[425016346,1781432875000,-505.0,0.00018,2]
[425016347,1781432875000,-153.0,0.00018,2]
[425016350,1781432875000,-386.57,0.00018241,2]
[425016345,1781432875000,-155.0,0.0001729,2]
[425016349,1781432875000,-154.48308056,0.0001819,2]
[425016359,1781432875000,-189.19055999,0.00018989,2]
[425016358,1781432875000,-320.15,0.00018826,2]
[425016357,1781432875000,-287.0,0.00018824,2]
[425016348,1781432875000,-153.0,0.0001805,2]
[425016355,1781432875000,-151.6,0.0001841,2]
[425016356,1781432875000,-166.66,0.0001876,2]
[425016352,1781432875000,-155.64,0.00018314,2]